fUSD/lending_fUSD_20240408
["ID","MTS","AMOUNT","RATE_DAILY","PERIOD"]
[321823353,1712536264497,-500.0,0.00020999,2]
[321823354,1712536264507,-257.93642697,0.00020999,2]
[321823355,1712536264516,-500.0,0.00020999,2]
[321823356,1712536264526,-500.0,0.00020999,2]
[321823357,1712536264537,-500.0,0.00020999,2]
[321823358,1712536264547,-636.48,0.00020999,2]
[321823359,1712536264557,-500.0,0.00020999,2]
[321823360,1712536264567,-500.0,0.00020999,2]
[321823361,1712536264577,-500.0,0.00020999,2]
[321823362,1712536264586,-447.25842751,0.00020999,2]
[321823363,1712536264595,-500.0,0.00020999,2]
[321823364,1712536264605,-616.79647631,0.00020999,2]
[321823365,1712536264614,-500.0,0.00020999,2]
[321823366,1712536264625,-500.0,0.00020999,2]
[321823367,1712536264634,-422.02314719,0.00020999,2]
[321823368,1712536264644,-737.9,0.00020999,2]
[321823369,1712536264654,-737.9,0.00020999,2]
[321823370,1712536264664,-737.9,0.00020999,2]
[321823371,1712536264675,-737.9,0.00020999,2]
[321823372,1712536264685,-737.9,0.00020999,2]
[321823373,1712536264695,-737.90109378,0.00020999,2]
[321823374,1712536264705,-500.0,0.00020999,2]
[321823375,1712536264715,-500.0,0.00020999,2]
[321823376,1712536264724,-500.0,0.00020999,2]
[321823377,1712536264734,-500.0,0.00020999,2]
[321823378,1712536264744,-500.0,0.00020999,2]
[321823379,1712536264753,-500.0,0.00020999,2]
[321823380,1712536264762,-523.11113521,0.00020999,2]
[321823381,1712536264772,-517.55,0.00020999,2]
[321823382,1712536264783,-517.55,0.00020999,2]
[321823383,1712536264792,-517.55,0.00020999,2]
[321823384,1712536264802,-517.55,0.00020999,2]
[321823385,1712536264812,-517.55,0.00020999,2]
[321823386,1712536264822,-517.55,0.00020999,2]
[321823387,1712536264832,-517.55,0.00020999,2]
[321823388,1712536264841,-517.55,0.00020999,2]
[321823389,1712536264851,-517.55,0.00020999,2]
[321823390,1712536264861,-517.7339626,0.00020999,2]
[321823391,1712536264871,-500.0,0.00020999,2]
[321823392,1712536264880,-500.0,0.00020999,2]
[321823393,1712536264890,-500.0,0.00020999,2]
[321823394,1712536264900,-500.0,0.00020999,2]
[321823395,1712536264910,-500.0,0.00020999,2]
[321823396,1712536264919,-500.0,0.00020999,2]
[321823397,1712536264931,-500.0,0.00020999,2]
[321823398,1712536264940,-500.0,0.00020999,2]
[321823399,1712536264949,-256.23561514,0.00020999,2]
[321823400,1712536264958,-523.06,0.00020999,2]
[321823401,1712536264969,-523.06,0.00020999,2]
[321823402,1712536264978,-523.06,0.00020999,2]
[321823403,1712536264988,-523.06,0.00020999,2]
[321823404,1712536264998,-523.06,0.00020999,2]
[321823405,1712536265008,-523.10293138,0.00020999,2]
[321823406,1712536265017,-650.78,0.00020999,2]
[321823407,1712536265027,-650.78,0.00020999,2]
[321823408,1712536265037,-650.78,0.00020999,2]
[321823409,1712536265047,-650.78,0.00020999,2]
[321823410,1712536265057,-650.78,0.00020999,2]
[321823411,1712536265068,-650.94828947,0.00020999,2]
[321823412,1712536265078,-867.21,0.00020999,2]
[321823413,1712536265088,-867.21,0.00020999,2]
[321823414,1712536265100,-867.21,0.00020999,2]
[321823415,1712536265110,-867.21,0.00020999,2]
[321823416,1712536265120,-867.21,0.00020999,2]
[321823417,1712536265130,-867.44714962,0.00020999,2]
[321823418,1712536265140,-838.78,0.00020999,2]
[321823419,1712536265151,-838.78,0.00020999,2]
[321823420,1712536265161,-838.78,0.00020999,2]
[321823421,1712536265172,-500.0,0.00020999,2]
[321823422,1712536265182,-838.78,0.00020999,2]
[321823423,1712536265192,-500.0,0.00020999,2]
[321823424,1712536265202,-838.78,0.00020999,2]
[321823425,1712536265213,-500.0,0.00020999,2]
[321823426,1712536265223,-500.0,0.00020999,2]
[321823427,1712536265234,-838.81751251,0.00020999,2]
[321823428,1712536265244,-500.0,0.00020999,2]
[321823429,1712536265254,-500.0,0.00020999,2]
[321823430,1712536265264,-561.34754138,0.00020999,2]
[321823431,1712536265510,-504.98,0.00020999,2]
[321823432,1712536265528,-504.98,0.00020999,2]
[321823433,1712536265540,-504.98,0.00020999,2]
[321823434,1712536265550,-504.98,0.00020999,2]
[321823435,1712536265561,-504.98,0.00020999,2]
[321823436,1712536265572,-505.20141247,0.00020999,2]
[321823437,1712536265582,-671.95,0.00020999,2]
[321823438,1712536265592,-671.95,0.00020999,2]
[321823439,1712536265602,-671.95,0.00020999,2]
[321823440,1712536265612,-671.95,0.00020999,2]
[321823441,1712536265622,-671.95,0.00020999,2]
[321823442,1712536265632,-672.12,0.00020999,2]
[321823443,1712536265643,-500.0,0.00020999,2]
[321823444,1712536265653,-500.0,0.00020999,2]
[321823445,1712536265664,-500.0,0.00020999,2]
[321823446,1712536265674,-500.0,0.00020999,2]
[321823447,1712536265685,-561.43795519,0.00020999,2]
[321823448,1712536265695,-592.73,0.00020999,2]
[321823449,1712536265705,-592.73,0.00020999,2]
[321823450,1712536265715,-592.73,0.00020999,2]
[321823451,1712536265725,-592.73,0.00020999,2]
[321823452,1712536265735,-976.68,0.00020999,2]
[321823453,1712536265745,-592.73,0.00020999,2]
[321823454,1712536265755,-976.68,0.00020999,2]
[321823455,1712536265765,-592.81731582,0.00020999,2]
[321823456,1712536265776,-976.68,0.00020999,2]
[321823457,1712536265786,-976.68,0.00020999,2]
[321823458,1712536265796,-976.68,0.00020999,2]
[321823459,1712536265806,-976.89526139,0.00020999,2]
[321823460,1712536265817,-518.31,0.00020999,2]
[321823461,1712536265828,-518.31,0.00020999,2]
[321823462,1712536265838,-518.31,0.00020999,2]
[321823463,1712536265849,-518.31,0.00020999,2]
[321823464,1712536265859,-518.31,0.00020999,2]
[321823465,1712536265869,-518.31,0.00020999,2]
[321823466,1712536265879,-518.31,0.00020999,2]
[321823467,1712536265890,-518.31,0.00020999,2]
[321823468,1712536265900,-518.31,0.00020999,2]
[321823469,1712536265909,-518.45902539,0.00020999,2]
[321823470,1712536265920,-4816.37,0.00020999,2]
[321823471,1712536265932,-4816.37,0.00020999,2]
[321823472,1712536265942,-4816.37,0.00020999,2]
[321823473,1712536265951,-4816.37,0.00020999,2]
[321823474,1712536265961,-4816.37,0.00020999,2]
[321823475,1712536265971,-4816.58383918,0.00020999,2]
[321823476,1712536265982,-500.0,0.00020999,2]
[321823477,1712536265992,-500.0,0.00020999,2]
[321823478,1712536266002,-500.0,0.00020999,2]
[321823479,1712536266012,-500.0,0.00020999,2]
[321823480,1712536266021,-500.0,0.00020999,2]
[321823481,1712536266031,-466.53382114,0.00020999,2]
[321823482,1712536266041,-500.0,0.00020999,2]
[321823483,1712536266050,-500.0,0.00020999,2]
[321823484,1712536266060,-500.0,0.00020999,2]
[321823485,1712536266069,-623.20712454,0.00020999,2]
[321823486,1712536266079,-500.0,0.00020999,2]
[321823487,1712536266089,-500.0,0.00020999,2]
[321823488,1712536266098,-500.0,0.00020999,2]
[321823489,1712536266108,-500.0,0.00020999,2]
[321823490,1712536266118,-500.0,0.00020999,2]
[321823491,1712536266128,-500.0,0.00020999,2]
[321823492,1712536266138,-515.91907668,0.00020999,2]
[321823493,1712536266147,-748.0,0.00020999,2]
[321823494,1712536266157,-748.0,0.00020999,2]
[321823495,1712536266166,-748.0,0.00020999,2]
[321823496,1712536266177,-748.0,0.00020999,2]
[321823497,1712536266187,-748.0,0.00020999,2]
[321823498,1712536266196,-748.03987986,0.00020999,2]
[321823499,1712536266205,-500.0,0.00020999,2]
[321823500,1712536266215,-500.0,0.00020999,2]
[321823501,1712536266224,-500.0,0.00020999,2]
[321823502,1712536266234,-500.0,0.00020999,2]
[321823503,1712536266244,-500.0,0.00020999,2]
[321823504,1712536266254,-500.0,0.00020999,2]
[321823505,1712536266264,-500.0,0.00020999,2]
[321823506,1712536266274,-500.0,0.00020999,2]
[321823507,1712536266284,-602.37814075,0.00020999,2]
[321823508,1712536266294,-790.57,0.00020999,2]
[321823509,1712536266304,-790.57,0.00020999,2]
[321823510,1712536266314,-790.57,0.00020999,2]
[321823511,1712536266324,-790.57,0.00020999,2]
[321823512,1712536266334,-790.57,0.00020999,2]
[321823513,1712536266345,-790.71950456,0.00020999,2]
[321823514,1712536266355,-538.97,0.00020999,2]
[321823515,1712536266365,-538.97,0.00020999,2]
[321823516,1712536266376,-538.97,0.00020999,2]
[321823517,1712536266386,-538.97,0.00020999,2]
[321823518,1712536266396,-538.97,0.00020999,2]
[321823519,1712536266406,-538.97,0.00020999,2]
[321823520,1712536266415,-538.97,0.00020999,2]
[321823521,1712536266427,-732.92,0.00020999,2]
[321823522,1712536266437,-538.97,0.00020999,2]
[321823523,1712536266447,-732.92,0.00020999,2]
[321823524,1712536266460,-538.97,0.00020999,2]
[321823525,1712536266470,-732.92,0.00020999,2]
[321823526,1712536266480,-539.14571725,0.00020999,2]
[321823527,1712536266490,-732.92,0.00020999,2]
[321823528,1712536266501,-732.92,0.00020999,2]
[321823529,1712536266510,-733.11138364,0.00020999,2]
[321823530,1712536266521,-540.03,0.00020999,2]
[321823531,1712536266531,-540.03,0.00020999,2]
[321823532,1712536266542,-540.03,0.00020999,2]
[321823533,1712536266551,-540.03,0.00020999,2]
[321823534,1712536266561,-540.03,0.00020999,2]
[321823535,1712536266571,-540.10892171,0.00020999,2]
[321823536,1712536266581,-500.0,0.00020999,2]
[321823537,1712536266591,-500.0,0.00020999,2]
[321823538,1712536266600,-500.0,0.00020999,2]
[321823539,1712536266610,-367.9944023,0.00020999,2]
[321823540,1712536266620,-622.5,0.00020999,2]
[321823541,1712536266630,-622.5,0.00020999,2]
[321823542,1712536266641,-622.5,0.00020999,2]
[321823543,1712536266650,-622.5,0.00020999,2]
[321823544,1712536266660,-622.5,0.00020999,2]
[321823545,1712536266670,-622.71410234,0.00020999,2]
[321823546,1712536266680,-500.0,0.00020999,2]
[321823547,1712536266690,-564.75002301,0.00020999,2]
[321823548,1712536266699,-1252.96,0.00020999,2]
[321823549,1712536266709,-1252.96,0.00020999,2]
[321823550,1712536266719,-1252.96,0.00020999,2]
[321823551,1712536266728,-1252.96,0.00020999,2]
[321823552,1712536266738,-1252.96,0.00020999,2]
[321823553,1712536266747,-1253.01424598,0.00020999,2]
[321823554,1712536266757,-522.59,0.00020999,2]
[321823555,1712536266767,-522.59,0.00020999,2]
[321823556,1712536266777,-522.59,0.00020999,2]
[321823557,1712536266786,-522.59,0.00020999,2]
[321823558,1712536266796,-522.59,0.00020999,2]
[321823559,1712536266805,-522.67487734,0.00020999,2]
[321823560,1712536266815,-596.08,0.00020999,2]
[321823561,1712536266825,-596.08,0.00020999,2]
[321823562,1712536266834,-596.08,0.00020999,2]
[321823563,1712536266844,-596.08,0.00020999,2]
[321823564,1712536266854,-596.08,0.00020999,2]
[321823565,1712536266863,-596.20933505,0.00020999,2]
[321823566,1712536266873,-586.69,0.00020999,2]
[321823567,1712536266883,-586.69,0.00020999,2]
[321823568,1712536266893,-586.69,0.00020999,2]
[321823569,1712536266903,-586.69,0.00020999,2]
[321823570,1712536266912,-586.69,0.00020999,2]
[321823571,1712536266922,-586.69,0.00020999,2]
[321823572,1712536266937,-586.69,0.00020999,2]
[321823573,1712536266947,-586.69,0.00020999,2]
[321823574,1712536266956,-586.69,0.00020999,2]
[321823575,1712536266965,-586.9,0.00020999,2]
[321823576,1712536266975,-884.46,0.00020999,2]
[321823577,1712536266985,-884.46,0.00020999,2]
[321823578,1712536266995,-884.46,0.00020999,2]
[321823579,1712536267004,-884.46,0.00020999,2]
[321823580,1712536267014,-884.46,0.00020999,2]
[321823581,1712536267024,-884.66132337,0.00020999,2]
[321823582,1712536267034,-1531.53,0.00020999,2]
[321823583,1712536267044,-1531.53,0.00020999,2]
[321823584,1712536267054,-1531.53,0.00020999,2]
[321823585,1712536267063,-1531.53,0.00020999,2]
[321823586,1712536267072,-1531.53,0.00020999,2]
[321823587,1712536267081,-1531.73856647,0.00020999,2]
[321823588,1712536267091,-614.83,0.00020999,2]
[321823589,1712536267101,-614.83,0.00020999,2]
[321823590,1712536267110,-614.83,0.00020999,2]
[321823591,1712536267120,-614.83,0.00020999,2]
[321823592,1712536267129,-614.83,0.00020999,2]
[321823593,1712536267139,-614.94545526,0.00020999,2]
[321823594,1712536267149,-992.07,0.00020999,2]
[321823595,1712536267159,-992.07,0.00020999,2]
[321823596,1712536267170,-992.07,0.00020999,2]
[321823597,1712536267182,-992.07,0.00020999,2]
[321823598,1712536267192,-992.07,0.00020999,2]
[321823599,1712536267201,-992.0964074,0.00020999,2]
[321823600,1712536267211,-1051.92,0.00020999,2]
[321823601,1712536267221,-1051.92,0.00020999,2]
[321823602,1712536267231,-1051.92,0.00020999,2]
[321823603,1712536267241,-1051.92,0.00020999,2]
[321823604,1712536267252,-1051.92,0.00020999,2]
[321823605,1712536267262,-1052.15149455,0.00020999,2]
[321823606,1712536267271,-685.45,0.00020999,2]
[321823607,1712536267281,-685.45,0.00020999,2]
[321823608,1712536267292,-685.45,0.00020999,2]
[321823609,1712536267301,-685.45,0.00020999,2]
[321823610,1712536267311,-685.45,0.00020999,2]
[321823611,1712536267321,-685.64591112,0.00020999,2]
[321823612,1712536267331,-1504.75,0.00020999,2]
[321823613,1712536267341,-1504.75,0.00020999,2]
[321823614,1712536267351,-1504.75,0.00020999,2]
[321823615,1712536267360,-1504.75,0.00020999,2]
[321823616,1712536267370,-1504.75,0.00020999,2]
[321823617,1712536267380,-1504.95345223,0.00020999,2]
[321823618,1712536267390,-557.89,0.00020999,2]
[321823619,1712536267399,-557.89,0.00020999,2]
[321823620,1712536267409,-557.89,0.00020999,2]
[321823621,1712536267419,-647.24,0.00020999,2]
[321823622,1712536267429,-557.89,0.00020999,2]
[321823623,1712536267439,-647.24,0.00020999,2]
[321823624,1712536267450,-647.24,0.00020999,2]
[321823625,1712536267462,-557.89,0.00020999,2]
[321823626,1712536267472,-557.93,0.00020999,2]
[321823627,1712536267482,-647.24,0.00020999,2]
[321823628,1712536267493,-647.24,0.00020999,2]
[321823629,1712536267503,-647.28,0.00020999,2]
[321823630,1712536267513,-507.0,0.00020999,2]
[321823631,1712536267523,-507.0,0.00020999,2]
[321823632,1712536267534,-507.0,0.00020999,2]
[321823633,1712536267544,-507.0,0.00020999,2]
[321823634,1712536267554,-507.0,0.00020999,2]
[321823635,1712536267564,-507.17,0.00020999,2]
[321823636,1712536267574,-553.64,0.00020999,2]
[321823637,1712536267584,-553.64,0.00020999,2]
[321823638,1712536267594,-553.64,0.00020999,2]
[321823639,1712536267604,-553.64,0.00020999,2]
[321823640,1712536267613,-553.64,0.00020999,2]
[321823641,1712536267623,-553.84276853,0.00020999,2]
[321823642,1712536267632,-555.41,0.00020999,2]
[321823643,1712536267641,-555.41,0.00020999,2]
[321823644,1712536267651,-555.41,0.00020999,2]
[321823645,1712536267660,-555.41,0.00020999,2]
[321823646,1712536267669,-555.41,0.00020999,2]
[321823647,1712536267678,-555.56922647,0.00020999,2]
[321823648,1712536267687,-508.24,0.00020999,2]
[321823649,1712536267697,-508.24,0.00020999,2]
[321823650,1712536267706,-508.24,0.00020999,2]
[321823651,1712536267715,-508.24,0.00020999,2]
[321823652,1712536267725,-508.24,0.00020999,2]
[321823653,1712536267734,-508.24,0.00020999,2]
[321823654,1712536267743,-20000.0,0.00021,2]
[321823655,1712536267753,-2126.0,0.00021,2]
[321823656,1712536267762,-10737318.46179473,0.00021,2]
[321823657,1712536268101,-395723.42110396,0.00021,2]
[321823658,1712536268114,-3956.80971926,0.00021,2]
[321823659,1712536268132,-450.25488,0.00021,2]
[321823660,1712536268195,-35.64089698,0.00020972,2]
[321823661,1712536268213,-464.35910302,0.00020972,2]
[321823662,1712536268222,-500.0,0.00020972,2]
[321823663,1712536268231,-982.46,0.00020998,2]
[321823664,1712536268240,-1445682.99873443,0.00021,2]
[321823665,1712536268601,-500.0,0.00020973,2]
[321823666,1712536268612,-500.0,0.00020974,2]
[321823667,1712536268621,-500.0,0.00020974,2]
[321823668,1712536268630,-500.0,0.00020974,2]
[321823669,1712536268639,-500.0,0.00020974,2]
[321823670,1712536268648,-500.0,0.00020974,2]
[321823671,1712536268657,-305.06330806,0.00020974,2]
[321823672,1712536269132,-194.93669194,0.00020974,2]
[321823673,1712536269141,-395.15367362,0.00020974,2]
[321823674,1712536269182,-104.84632638,0.00020974,2]
[321823675,1712536269192,-500.0,0.00020974,2]
[321823676,1712536269200,-500.0,0.00020974,2]
[321823677,1712536269209,-500.0,0.00020975,2]
[321823678,1712536269218,-500.0,0.00020975,2]
[321823679,1712536269227,-500.0,0.00020975,2]
[321823680,1712536269236,-146.25952697,0.00020999,2]
[321823681,1712536269247,-836.20047303,0.00020999,2]
[321823682,1712536269256,-982.46,0.00020999,2]
[321823683,1712536269266,-141.56197787,0.00020999,2]
[321823684,1712536269994,-0.00692401,0.00020972,2]
[321823685,1712536270057,-473.43233752,0.00020972,2]
[321823686,1712536270067,-500.0,0.00020975,2]
[321823687,1712536270076,-500.0,0.00020975,2]
[321823688,1712536270086,-500.0,0.00020975,2]
[321823689,1712536270094,-500.0,0.00020975,2]
[321823690,1712536270104,-500.0,0.00020975,2]
[321823691,1712536270113,-500.0,0.00020975,2]
[321823692,1712536270122,-500.0,0.00020975,2]
[321823693,1712536270131,-500.0,0.00020975,2]
[321823694,1712536270140,-500.0,0.00020975,2]
[321823695,1712536270149,-500.0,0.00020976,2]
[321823696,1712536270159,-500.0,0.00020992,2]
[321823697,1712536270168,-500.0,0.00020997,2]
[321823698,1712536270178,-500.0,0.00020997,2]
[321823699,1712536270187,-500.0,0.00020997,2]
[321823700,1712536270196,-500.0,0.00020998,2]
[321823701,1712536270205,-500.0,0.00020998,2]
[321823702,1712536270213,-500.0,0.00020998,2]
[321823703,1712536270223,-840.89802213,0.00020999,2]
[321823704,1712536270232,-982.46,0.00020999,2]
[321823705,1712536270242,-982.46,0.00020999,2]
[321823706,1712536270251,-982.6111222,0.00020999,2]
[321823707,1712536270260,-500.0,0.00020999,2]
[321823708,1712536270270,-500.0,0.00020999,2]
[321823709,1712536270280,-190185.94359179,0.00021,2]
[321823710,1712536270988,-8e-08,0.00020998,2]
[321823711,1712536271260,-339.0,0.00020998,2]
[321823712,1712536783787,871.98566203,0.0003,28]
[321823713,1712536832816,454.30452992,0.0003,28]
[321823714,1712536957566,162.93801693,0.00017928,2]
[321823716,1712537104495,150.0,0.00018,2]
[321823717,1712537122254,442.08,0.00017947,2]
[321823718,1712537221766,200.0,0.0003,28]
[321823719,1712537231105,-736.2979285,0.00018007,2]
[321823720,1712537231125,-404.64904751,0.00018007,2]
[321823721,1712537231145,-500.0,0.00018008,2]
[321823722,1712537231165,-550.63356813,0.00018009,2]
[321823723,1712537231183,-1000.0,0.00018009,2]
[321823724,1712537231201,-342.43500003,0.0001801,2]
[321823725,1712537231221,-3374.18597777,0.00018011,2]
[321823726,1712537231244,-88.06621995,0.00018014,2]
[321823727,1712537248088,-536.60711953,0.00018014,2]
[321823728,1712537248108,-150.0,0.00018019,2]
[321823729,1712537248127,-1750.0,0.00019,3]
[321823730,1712537248147,-265.43,0.00019822,2]
[321823731,1712537248167,-609.6,0.00019839,2]
[321823732,1712537248187,-3019.04,0.00019842,2]
[321823733,1712537248208,-8167.9,0.00019889,2]
[321823734,1712537248228,-14.79466589,0.00020211,2]
[321823735,1712537249089,-427.28533411,0.00020211,2]
[321823736,1712537249111,-150.0,0.000205,2]
[321823737,1712537249132,-549.0,0.0002052,2]
[321823738,1712537249157,-800.0,0.00020831,2]
[321823739,1712537249177,-500.0,0.00020831,2]
[321823740,1712537249199,-200.0,0.00020832,2]
[321823741,1712537249220,-800.0,0.00020832,2]
[321823742,1712537249241,-500.0,0.00020832,2]
[321823743,1712537249260,-539.47085674,0.000209,2]
[321823748,1712537432380,-878.2647,0.00020014,2]
[321823749,1712537432493,-121.7353,0.00020014,2]
[321823750,1712537432502,-550.63356813,0.00020015,2]
[321823751,1712537432512,-75.56073061,0.00020019,2]
[321823752,1712537432550,-436.75926939,0.00020019,2]
[321823753,1712537432559,-282.60992288,0.00020548,2]
[321823754,1712537432571,-295.39007712,0.00020548,2]
[321823755,1712537432580,-173.214323,0.00020822,2]
[321823756,1712537432589,-191.04744326,0.000209,2]
[321823757,1712537432598,-959.3344193,0.000209,2]
[321823758,1712537432610,-1058.24869984,0.000209,2]
[321823759,1712537432629,-1115.74896353,0.000209,2]
[321823760,1712537432642,-544.85215758,0.000209,2]
[321823761,1712537432725,-4315.57662064,0.000209,2]
[321823784,1712537438405,-4920.68777212,0.000209,2]
[321823785,1712537438415,-194.43652152,0.000209,2]
[321823786,1712537438427,-3735.47101708,0.000209,2]
[321823787,1712537438437,-157.040809,0.00020908,2]
[321823788,1712537438446,-157.040809,0.00020908,2]
[321823789,1712537438457,-157.040809,0.00020908,2]
[321823790,1712537438466,-157.040809,0.00020908,2]
[321823791,1712537438476,-157.040809,0.00020908,2]
[321823792,1712537438485,-157.040809,0.00020908,2]
[321823793,1712537438495,-157.040809,0.00020908,2]
[321823794,1712537438505,-157.040809,0.00020908,2]
[321823795,1712537438514,-157.040809,0.00020908,2]
[321823796,1712537438524,-157.040809,0.00020908,2]
[321823797,1712537438533,-157.040809,0.00020908,2]
[321823798,1712537438542,-157.040809,0.00020908,2]
[321823799,1712537438551,-157.040809,0.00020908,2]
[321823800,1712537438560,-157.040809,0.00020908,2]
[321823801,1712537438569,-157.040809,0.00020908,2]
[321823802,1712537438579,-157.040809,0.00020908,2]
[321823803,1712537438588,-157.040809,0.00020908,2]
[321823804,1712537438597,-157.040809,0.00020908,2]
[321823805,1712537438606,-157.040809,0.00020908,2]
[321823806,1712537438615,-157.040809,0.00020908,2]
[321823807,1712537438624,-500.0,0.0002097,2]
[321823808,1712537438633,-518.45902539,0.0002097,2]
[321823809,1712537438642,-480.67948389,0.0002097,2]
[321823810,1712537438657,-19.32051611,0.0002097,2]
[321823811,1712537438666,-539.14571725,0.0002097,2]
[321823812,1712537438676,-500.0,0.0002097,2]
[321823813,1712537438685,-500.0,0.0002097,2]
[321823814,1712537438694,-500.0,0.00020971,2]
[321823815,1712537438704,-500.0,0.00020971,2]
[321823816,1712537438713,-500.0,0.00020971,2]
[321823817,1712537438723,-663.78,0.00020971,2]
[321823818,1712537438732,-500.0,0.00020971,2]
[321823819,1712537438742,-500.0,0.00020971,2]
[321823820,1712537438752,-500.0,0.00020971,2]
[321823821,1712537438761,-500.0,0.00020972,2]
[321823822,1712537438770,-250.88,0.00020972,2]
[321823823,1712537438780,-500.0,0.00020972,2]
[321823824,1712537438792,-500.0,0.00020972,2]
[321823825,1712537438801,-500.0,0.00020972,2]
[321823826,1712537438810,-500.0,0.00020972,2]
[321823827,1712537438819,-663.78,0.00020972,2]
[321823828,1712537438829,-500.0,0.00020972,2]
[321823829,1712537438838,-569.49737001,0.00020972,2]
[321823830,1712537438847,-500.0,0.00020972,2]
[321823831,1712537438857,-157.99812555,0.00020973,2]
[321823838,1712537439072,-307.96568012,0.00020973,2]
[321823839,1712537439082,-203.77459958,0.00020973,2]
[321823840,1712537439091,-1276.91781878,0.00020973,2]
[321823841,1712537439101,-500.0,0.00020973,2]
[321823842,1712537439110,-500.0,0.00020973,2]
[321823843,1712537439120,-500.0,0.00020973,2]
[321823844,1712537439131,-500.0,0.00020973,2]
[321823845,1712537439140,-663.78,0.00020973,2]
[321823846,1712537439149,-663.78,0.00020973,2]
[321823847,1712537439159,-500.0,0.00020973,2]
[321823848,1712537439169,-500.0,0.00020973,2]
[321823849,1712537439178,-500.0,0.00020973,2]
[321823850,1712537439187,-500.0,0.00020973,2]
[321823851,1712537439197,-1210.30084464,0.00020974,2]
[321823852,1712537439206,-500.0,0.00020974,2]
[321823853,1712537439215,-500.0,0.00020974,2]
[321823854,1712537439223,-500.0,0.00020974,2]
[321823855,1712537439232,-500.0,0.00020974,2]
[321823856,1712537439242,-500.0,0.00020974,2]
[321823857,1712537439251,-500.0,0.00020974,2]
[321823858,1712537439260,-500.0,0.00020974,2]
[321823859,1712537439270,-663.78,0.00020974,2]
[321823860,1712537439279,-663.78,0.00020974,2]
[321823861,1712537439288,-663.78,0.00020974,2]
[321823862,1712537439297,-663.78,0.00020974,2]
[321823863,1712537439306,-663.78,0.00020974,2]
[321823864,1712537439315,-663.78,0.00020974,2]
[321823865,1712537439324,-663.78,0.00020974,2]
[321823866,1712537439333,-500.0,0.00020974,2]
[321823867,1712537439343,-500.0,0.00020974,2]
[321823868,1712537439352,-500.0,0.00020974,2]
[321823869,1712537439361,-500.0,0.00020974,2]
[321823870,1712537439370,-500.0,0.00020974,2]
[321823871,1712537439379,-500.0,0.00020974,2]
[321823872,1712537439388,-500.0,0.00020974,2]
[321823873,1712537439397,-500.0,0.00020974,2]
[321823874,1712537439406,-500.0,0.00020974,2]
[321823875,1712537439415,-453.68521228,0.00020974,2]
[321823876,1712537439426,-500.0,0.00020975,2]
[321823877,1712537439435,-500.0,0.00020975,2]
[321823878,1712537439444,-500.0,0.00020975,2]
[321823879,1712537439454,-500.0,0.00020975,2]
[321823880,1712537439463,-500.0,0.00020975,2]
[321823881,1712537439473,-663.78,0.00020975,2]
[321823882,1712537439482,-663.78,0.00020975,2]
[321823883,1712537439492,-663.78,0.00020975,2]
[321823884,1712537439501,-663.78,0.00020975,2]
[321823885,1712537439510,-663.78,0.00020975,2]